fUSD/lending_fUSD_20240630
["ID","MTS","AMOUNT","RATE_DAILY","PERIOD"]
[330702431,1719715893248,-589.24903637,0.0001578,3]
[330702432,1719715893258,-654.89,0.0001578,3]
[330702433,1719715893268,-450.0,0.0001579,2]
[330702434,1719715893277,-179.85213788,0.00015808,2]
[330702435,1719715893287,-167.0,0.00015831,2]
[330702436,1719715893297,-166.88,0.00015831,2]
[330702437,1719715893306,-167.88,0.00015831,2]
[330702438,1719715893316,-246.18245,0.0001588,2]
[330702439,1719715893326,-664.54,0.00015889,3]
[330702440,1719715893336,-699.83,0.00015889,3]
[330702441,1719715893349,-1202.0,0.00015889,3]
[330702442,1719715893359,-522.36,0.00015889,3]
[330702443,1719715893369,-587.33,0.0001589,3]
[330702444,1719715893379,-730.63,0.0001589,3]
[330702445,1719715893389,-500.0,0.0001589,2]
[330702446,1719715893398,-937.17,0.0001589,3]
[330702447,1719715893408,-2172.53,0.0001589,3]
[330702448,1719715893417,-500.0,0.0001589,2]
[330702449,1719715893427,-1705.68,0.0001589,3]
[330702450,1719715893436,-621.2,0.0001589,3]
[330702451,1719715893446,-786.94,0.0001589,3]
[330702452,1719715893456,-575.12,0.0001589,3]
[330702453,1719715893466,-633.74,0.0001589,3]
[330702454,1719715893475,-374.34414826,0.0001589,3]
[330702455,1719715893485,-500.0,0.0001589,3]
[330702456,1719715893494,-1034.52,0.0001589,3]
[330702457,1719715893505,-768.2,0.0001589,3]
[330702458,1719715893515,-614.71,0.0001589,3]
[330702459,1719715893524,-731.6,0.0001589,3]
[330702460,1719715893534,-500.0,0.0001589,3]
[330702461,1719715893543,-560.3,0.0001589,3]
[330702462,1719715893553,-500.0,0.0001589,3]
[330702463,1719715893562,-670.04,0.0001589,3]
[330702464,1719715893572,-577.86167482,0.0001589,3]
[330702465,1719715893581,-670.53,0.0001589,3]
[330702466,1719715893590,-1084.67,0.0001589,3]
[330702467,1719715893602,-688.83,0.0001589,3]
[330702468,1719715893611,-1047.34,0.0001589,3]
[330702469,1719715893620,-874.39,0.0001589,3]
[330702470,1719715893631,-500.0,0.0001589,3]
[330702471,1719715893643,-500.0,0.0001589,3]
[330702472,1719715893652,-989.37,0.0001589,3]
[330702473,1719715893662,-639.49,0.0001589,3]
[330702474,1719715893672,-749.55,0.0001589,3]
[330702475,1719715893682,-1660.26,0.0001589,3]
[330702476,1719715893692,-377.53406096,0.0001589,3]
[330702477,1719715893702,-609.86,0.0001589,3]
[330702478,1719715893711,-575.37,0.0001589,3]
[330702479,1719715893721,-525.93,0.0001589,3]
[330702480,1719715893733,-1032.93,0.0001589,3]
[330702481,1719715893743,-503.73,0.0001589,3]
[330702482,1719715893752,-907.61,0.0001589,3]
[330702483,1719715893762,-919.71,0.0001589,3]
[330702484,1719715893774,-609.42,0.0001589,3]
[330702485,1719715893784,-561.12,0.0001589,3]
[330702486,1719715893798,-155.73,0.0001589,3]
[330702487,1719715893808,-524.56,0.0001589,3]
[330702488,1719715893817,-648.03,0.0001589,3]
[330702489,1719715893827,-665.61,0.0001589,3]
[330702490,1719715893836,-646.30592785,0.0001589,3]
[330702491,1719715893846,-595.24,0.0001589,3]
[330702492,1719715893856,-500.0,0.0001589,3]
[330702493,1719715893866,-535.24,0.0001589,3]
[330702494,1719715893876,-1707.57,0.0001589,3]
[330702495,1719715893885,-500.0,0.0001589,3]
[330702496,1719715893895,-1194.29,0.0001589,3]
[330702497,1719715893905,-862.38,0.0001589,3]
[330702498,1719715893914,-775.65,0.0001589,3]
[330702499,1719715893923,-429.74497888,0.0001589,3]
[330702500,1719715893933,-214.57050917,0.0001589,3]
[330702501,1719715893943,-2017.06,0.0001589,3]
[330702502,1719715893953,-1155.28,0.0001589,3]
[330702503,1719715893962,-3847.3,0.0001589,3]
[330702504,1719715893972,-501.09,0.0001589,3]
[330702505,1719715893981,-670.12,0.0001589,3]
[330702506,1719715893991,-1981.14,0.0001589,3]
[330702507,1719715894001,-561.32,0.0001589,3]
[330702508,1719715894011,-1322.8,0.0001589,3]
[330702509,1719715894021,-500.0,0.0001589,3]
[330702510,1719715894030,-757.5,0.0001589,3]
[330702511,1719715894040,-398.52916706,0.0001589,3]
[330702512,1719715894053,-579.95,0.0001589,3]
[330702513,1719715894063,-1006.07,0.0001589,3]
[330702514,1719715894072,-500.0,0.0001589,3]
[330702515,1719715894083,-500.0,0.0001589,3]
[330702516,1719715894096,-1341.8,0.0001589,3]
[330702517,1719715894107,-500.0,0.0001589,3]
[330702518,1719715894117,-500.0,0.0001589,3]
[330702519,1719715894129,-633.84,0.0001589,3]
[330702520,1719715894143,-500.0,0.0001589,3]
[330702521,1719715894154,-1187.56,0.0001589,3]
[330702522,1719715894163,-500.0,0.0001589,3]
[330702523,1719715894173,-579.77,0.0001589,3]
[330702524,1719715894183,-603.84,0.0001589,3]
[330702525,1719715894192,-552.84,0.0001589,3]
[330702526,1719715894202,-965.88,0.0001589,3]
[330702527,1719715894212,-642.26,0.0001589,3]
[330702528,1719715894222,-698.45,0.0001589,3]
[330702529,1719715894232,-516.27,0.0001589,3]
[330702530,1719715894242,-500.0,0.0001589,3]
[330702531,1719715894252,-675.86,0.0001589,3]
[330702532,1719715894262,-763.84,0.0001589,3]
[330702533,1719715894273,-892.41,0.0001589,3]
[330702534,1719715894283,-708.05,0.0001589,3]
[330702535,1719715894293,-713.73,0.0001589,3]
[330702536,1719715894303,-523.74,0.0001589,3]
[330702537,1719715894313,-500.0,0.0001589,3]
[330702538,1719715894323,-624.5,0.0001589,3]
[330702539,1719715894333,-500.0,0.0001589,3]
[330702540,1719715894348,-3175.52,0.0001589,3]
[330702541,1719715894360,-157.08431289,0.0001589,3]
[330702542,1719715894370,-987.08,0.0001589,3]
[330702543,1719715894380,-1368.96,0.0001589,3]
[330702544,1719715894390,-500.0,0.0001589,3]
[330702545,1719715894400,-1311.38,0.0001589,3]
[330702546,1719715894470,-907.53,0.0001589,3]
[330702547,1719715894480,-507.05,0.0001589,3]
[330702548,1719715894490,-1080.55,0.0001589,3]
[330702549,1719715894501,-1968.8,0.0001589,3]
[330702550,1719715894511,-1471.1,0.0001589,3]
[330702551,1719715894520,-1161.94,0.0001589,3]
[330702552,1719715894530,-654.89,0.0001589,3]
[330702553,1719715894540,-172.72,0.00015933,2]
[330702554,1719715894550,-664.54,0.00015998,3]
[330702555,1719715894559,-699.83,0.00015998,3]
[330702556,1719715894569,-1202.0,0.00015998,3]
[330702557,1719715894579,-522.36,0.00015998,3]
[330702558,1719715894588,-587.33,0.00015999,3]
[330702559,1719715894603,-730.63,0.00015999,3]
[330702560,1719715894613,-937.17,0.00015999,3]
[330702561,1719715894623,-2172.53,0.00015999,3]
[330702562,1719715894632,-1705.68,0.00015999,3]
[330702563,1719715894643,-621.2,0.00015999,3]
[330702564,1719715894652,-786.94,0.00015999,3]
[330702565,1719715894661,-575.12,0.00015999,3]
[330702566,1719715894670,-633.74,0.00015999,3]
[330702567,1719715894679,-306.38770642,0.00015999,3]
[330702568,1719715894688,-1034.52,0.00015999,3]
[330702569,1719715894697,-768.2,0.00015999,3]
[330702570,1719715894706,-614.71,0.00015999,3]
[330702571,1719715894715,-731.6,0.00015999,3]
[330702572,1719715894725,-500.0,0.00015999,3]
[330702573,1719715894734,-560.3,0.00015999,3]
[330702574,1719715894743,-500.0,0.00015999,3]
[330702575,1719715894752,-670.04,0.00015999,3]
[330702576,1719715894761,-670.53,0.00015999,3]
[330702577,1719715894771,-1084.67,0.00015999,3]
[330702578,1719715894780,-688.83,0.00015999,3]
[330702579,1719715894790,-1047.34,0.00015999,3]
[330702580,1719715894799,-874.39,0.00015999,3]
[330702581,1719715894809,-500.0,0.00015999,3]
[330702582,1719715894819,-191.50034589,0.00015999,3]
[330702583,1719715894828,-989.37,0.00015999,3]
[330702584,1719715894838,-639.49,0.00015999,3]
[330702585,1719715894851,-749.55,0.00015999,3]
[330702586,1719715894860,-1660.26,0.00015999,3]
[330702587,1719715894870,-609.86,0.00015999,3]
[330702588,1719715894879,-575.37,0.00015999,3]
[330702589,1719715894888,-525.93,0.00015999,3]
[330702590,1719715894898,-1032.93,0.00015999,3]
[330702591,1719715894907,-503.73,0.00015999,3]
[330702592,1719715894918,-907.61,0.00015999,3]
[330702593,1719715894928,-919.71,0.00015999,3]
[330702594,1719715894938,-609.42,0.00015999,3]
[330702595,1719715894947,-561.12,0.00015999,3]
[330702596,1719715894956,-155.73,0.00015999,3]
[330702597,1719715894966,-524.56,0.00015999,3]
[330702598,1719715894976,-648.03,0.00015999,3]
[330702599,1719715894985,-665.61,0.00015999,3]
[330702600,1719715894994,-595.24,0.00015999,3]
[330702601,1719715895003,-500.0,0.00015999,3]
[330702602,1719715895014,-535.24,0.00015999,3]
[330702603,1719715895023,-1707.57,0.00015999,3]
[330702604,1719715895032,-218.88220346,0.00015999,3]
[330702605,1719715895041,-1194.29,0.00015999,3]
[330702606,1719715895051,-862.38,0.00015999,3]
[330702607,1719715895069,-775.65,0.00015999,3]
[330702608,1719715895078,-2017.06,0.00015999,3]
[330702609,1719715895087,-1155.28,0.00015999,3]
[330702610,1719715895099,-3847.3,0.00015999,3]
[330702611,1719715895110,-501.09,0.00015999,3]
[330702612,1719715895120,-670.12,0.00015999,3]
[330702613,1719715895130,-1981.14,0.00015999,3]
[330702614,1719715895140,-1322.8,0.00015999,3]
[330702615,1719715895150,-561.32,0.00015999,3]
[330702616,1719715895161,-500.0,0.00015999,3]
[330702617,1719715895170,-757.5,0.00015999,3]
[330702618,1719715895179,-579.95,0.00015999,3]
[330702619,1719715895189,-1006.07,0.00015999,3]
[330702620,1719715895198,-500.0,0.00015999,3]
[330702621,1719715895208,-500.0,0.00015999,3]
[330702622,1719715895217,-1341.8,0.00015999,3]
[330702623,1719715895228,-375.83163772,0.00015999,3]
[330702624,1719715895237,-471.28883837,0.00015999,3]
[330702625,1719715895248,-633.84,0.00015999,3]
[330702626,1719715895257,-500.0,0.00015999,3]
[330702627,1719715895266,-1187.56,0.00015999,3]
[330702628,1719715895276,-579.77,0.00015999,3]
[330702629,1719715895285,-500.0,0.00015999,3]
[330702630,1719715895295,-603.84,0.00015999,3]
[330702631,1719715895304,-552.84,0.00015999,3]
[330702632,1719715895313,-965.88,0.00015999,3]
[330702633,1719715895323,-642.26,0.00015999,3]
[330702634,1719715895332,-698.45,0.00015999,3]
[330702635,1719715895342,-516.27,0.00015999,3]
[330702636,1719715895352,-557.87565723,0.00015999,3]
[330702637,1719715895361,-675.86,0.00015999,3]
[330702638,1719715895371,-763.84,0.00015999,3]
[330702639,1719715895381,-892.41,0.00015999,3]
[330702640,1719715895390,-708.05,0.00015999,3]
[330702641,1719715895399,-713.73,0.00015999,3]
[330702642,1719715895408,-523.74,0.00015999,3]
[330702643,1719715895418,-500.0,0.00015999,3]
[330702644,1719715895426,-624.5,0.00015999,3]
[330702645,1719715895436,-500.0,0.00015999,3]
[330702646,1719715895445,-3175.52,0.00015999,3]
[330702647,1719715895455,-987.08,0.00015999,3]
[330702648,1719715895464,-1368.96,0.00015999,3]
[330702649,1719715895474,-435.85217767,0.00015999,3]
[330702650,1719715895483,-1311.38,0.00015999,3]
[330702651,1719715895493,-907.53,0.00015999,3]
[330702652,1719715895503,-507.05,0.00015999,3]
[330702653,1719715895513,-1080.55,0.00015999,3]
[330702654,1719715895524,-1968.8,0.00015999,3]
[330702655,1719715895535,-1471.1,0.00015999,3]
[330702656,1719715895547,-1161.94,0.00015999,3]
[330702657,1719715895557,-654.89,0.00015999,3]
[330702658,1719715895566,-2000.0,0.00016,2]
[330702659,1719715895576,-203.02303,0.00016,2]
[330702660,1719715895585,-203.02303,0.00016,2]
[330702661,1719715895595,-2000.0,0.0001601,2]
[330702662,1719715895604,-2000.0,0.0001602,2]
[330702663,1719715895613,-2000.0,0.0001603,2]
[330702664,1719715895623,-2062.190146,0.0001604,2]
[330702665,1719715895632,-171.29495,0.0001607,2]
[330702666,1719715895643,-190.32354915,0.00016082,2]
[330702667,1719715895653,-664.54,0.00016108,3]
[330702668,1719715895663,-699.83,0.00016108,3]
[330702669,1719715895673,-1202.0,0.00016108,3]
[330702670,1719715895682,-522.36,0.00016108,3]
[330702671,1719715895691,-587.33,0.00016109,3]
[330702672,1719715895701,-730.63,0.00016109,3]
[330702673,1719715895710,-937.17,0.00016109,3]
[330702674,1719715895719,-2172.53,0.00016109,3]
[330702675,1719715895729,-1705.68,0.00016109,3]
[330702676,1719715895739,-621.2,0.00016109,3]
[330702677,1719715895747,-786.94,0.00016109,3]
[330702678,1719715895757,-575.12,0.00016109,3]
[330702679,1719715895766,-633.74,0.00016109,3]
[330702680,1719715895776,-1034.52,0.00016109,3]
[330702681,1719715895785,-768.2,0.00016109,3]
[330702682,1719715895794,-614.71,0.00016109,3]
[330702683,1719715895803,-731.6,0.00016109,3]
[330702684,1719715895813,-500.0,0.00016109,3]
[330702685,1719715895822,-560.3,0.00016109,3]
[330702686,1719715895831,-500.0,0.00016109,3]
[330702687,1719715895841,-670.04,0.00016109,3]
[330702688,1719715895852,-670.53,0.00016109,3]
[330702689,1719715895862,-1084.67,0.00016109,3]
[330702690,1719715895871,-688.83,0.00016109,3]
[330702691,1719715895880,-1047.34,0.00016109,3]
[330702692,1719715895890,-874.39,0.00016109,3]
[330702693,1719715895900,-480.67260191,0.00016109,3]
[330702694,1719715895910,-989.37,0.00016109,3]
[330702695,1719715895920,-639.49,0.00016109,3]
[330702696,1719715895929,-749.55,0.00016109,3]
[330702697,1719715895939,-1660.26,0.00016109,3]
[330702698,1719715895948,-575.37,0.00016109,3]
[330702699,1719715895957,-609.86,0.00016109,3]
[330702700,1719715895967,-525.93,0.00016109,3]
[330702701,1719715895976,-1032.93,0.00016109,3]
[330702702,1719715895986,-503.73,0.00016109,3]
[330702703,1719715895996,-907.61,0.00016109,3]
[330702704,1719715896006,-919.71,0.00016109,3]
[330702705,1719715896015,-609.42,0.00016109,3]
[330702706,1719715896024,-561.12,0.00016109,3]
[330702707,1719715896034,-155.73,0.00016109,3]
[330702708,1719715896044,-524.56,0.00016109,3]
[330702709,1719715896058,-648.03,0.00016109,3]
[330702710,1719715896069,-665.61,0.00016109,3]
[330702711,1719715896078,-595.24,0.00016109,3]
[330702712,1719715896089,-500.0,0.00016109,3]
[330702713,1719715896101,-535.24,0.00016109,3]
[330702714,1719715896111,-1707.57,0.00016109,3]
[330702715,1719715896121,-1194.29,0.00016109,3]
[330702716,1719715896131,-862.38,0.00016109,3]
[330702717,1719715896141,-775.65,0.00016109,3]
[330702718,1719715896150,-2017.06,0.00016109,3]
[330702719,1719715896159,-1155.28,0.00016109,3]
[330702720,1719715896168,-3847.3,0.00016109,3]
[330702721,1719715896178,-501.09,0.00016109,3]
[330702722,1719715896187,-670.12,0.00016109,3]
[330702723,1719715896197,-1981.14,0.00016109,3]
[330702724,1719715896207,-1322.8,0.00016109,3]
[330702725,1719715896217,-209.47543636,0.00016109,3]
[330702726,1719715896226,-561.32,0.00016109,3]
[330702727,1719715896236,-757.5,0.00016109,3]
[330702728,1719715896246,-579.95,0.00016109,3]
[330702729,1719715896255,-1006.07,0.00016109,3]
[330702730,1719715896264,-348.09116766,0.00016109,3]
[330702731,1719715896274,-500.0,0.00016109,3]
[330702732,1719715896284,-1341.8,0.00016109,3]
[330702733,1719715896293,-633.84,0.00016109,3]
[330702734,1719715896303,-500.0,0.00016109,3]
[330702735,1719715896312,-1187.56,0.00016109,3]
[330702736,1719715896322,-579.77,0.00016109,3]
[330702737,1719715896331,-500.0,0.00016109,3]
[330702738,1719715896340,-603.84,0.00016109,3]
[330702739,1719715896352,-552.84,0.00016109,3]
[330702740,1719715896361,-965.88,0.00016109,3]
[330702741,1719715896371,-642.26,0.00016109,3]
[330702742,1719715896380,-698.45,0.00016109,3]
[330702743,1719715896390,-516.27,0.00016109,3]
[330702744,1719715896400,-675.86,0.00016109,3]
[330702745,1719715896409,-763.84,0.00016109,3]
[330702746,1719715896419,-892.41,0.00016109,3]
[330702747,1719715896429,-708.05,0.00016109,3]
[330702748,1719715896438,-523.74,0.00016109,3]
[330702749,1719715896447,-590.13817591,0.00016109,3]
[330702750,1719715896457,-624.5,0.00016109,3]
[330702751,1719715896467,-519.04064901,0.00016109,3]
[330702752,1719715896476,-3175.52,0.00016109,3]
[330702753,1719715896486,-987.08,0.00016109,3]
[330702754,1719715896495,-1368.96,0.00016109,3]
[330702755,1719715896505,-1311.38,0.00016109,3]
[330702756,1719715896515,-907.53,0.00016109,3]
[330702757,1719715896525,-507.05,0.00016109,3]
[330702758,1719715896535,-1080.55,0.00016109,3]
[330702759,1719715896544,-1968.8,0.00016109,3]
[330702760,1719715896554,-1471.1,0.00016109,3]
[330702761,1719715896564,-1161.94,0.00016109,3]
[330702762,1719715896574,-654.89,0.00016109,3]
[330702763,1719715896584,-6081.32,0.00016116,2]
[330702764,1719715896594,-273.51222739,0.00016119,2]
[330702765,1719715896604,-165.45162006,0.00016178,2]
[330702766,1719715896614,-204.0,0.0001618,2]
[330702767,1719715896624,-327.0,0.0001618,2]
[330702768,1719715896633,-13555.21091272,0.00016192,2]
[330702769,1719715896643,-664.54,0.00016218,3]
[330702770,1719715896653,-699.83,0.00016218,3]
[330702771,1719715896663,-1202.0,0.00016218,3]
[330702772,1719715896673,-522.36,0.00016218,3]
[330702773,1719715896682,-587.37771546,0.00016219,3]
[330702774,1719715896692,-730.79986745,0.00016219,3]
[330702775,1719715896701,-937.35640142,0.00016219,3]
[330702776,1719715896710,-2172.70944332,0.00016219,3]
[330702777,1719715896719,-1705.739132,0.00016219,3]
[330702778,1719715896728,-621.40427594,0.00016219,3]
[330702779,1719715896738,-787.02405987,0.00016219,3]
[330702780,1719715896747,-575.1792717,0.00016219,3]
[330702781,1719715896756,-633.94978125,0.00016219,3]
[330702782,1719715896765,-1034.73327296,0.00016219,3]
[330702783,1719715896774,-768.38417283,0.00016219,3]
[330702784,1719715896784,-614.78467021,0.00016219,3]
[330702785,1719715896794,-731.80891032,0.00016219,3]
[330702786,1719715896803,-338.05101105,0.00016219,3]
[330702787,1719715896812,-560.46034788,0.00016219,3]
[330702788,1719715896821,-422.6550484,0.00016219,3]
[330702789,1719715896831,-670.07513109,0.00016219,3]
[330702790,1719715896840,-670.55207517,0.00016219,3]
[330702791,1719715896851,-1084.89690348,0.00016219,3]
[330702792,1719715896860,-688.90851525,0.00016219,3]
[330702793,1719715896869,-1047.37120024,0.00016219,3]
[330702794,1719715896879,-874.46274489,0.00016219,3]
[330702795,1719715896889,-989.47556096,0.00016219,3]
[330702796,1719715896899,-639.59356628,0.00016219,3]
[330702797,1719715896908,-749.78114559,0.00016219,3]
[330702798,1719715896918,-1660.38764157,0.00016219,3]
[330702799,1719715896927,-575.40818851,0.00016219,3]
[330702800,1719715896937,-609.98117102,0.00016219,3]
[330702801,1719715896946,-526.04538455,0.00016219,3]
[330702802,1719715896955,-1033.04643789,0.00016219,3]
[330702803,1719715896964,-503.83416077,0.00016219,3]
[330702804,1719715896974,-907.69232768,0.00016219,3]
[330702805,1719715896984,-919.815026,0.00016219,3]
[330702806,1719715896993,-609.52357288,0.00016219,3]
[330702807,1719715897005,-561.16467631,0.00016219,3]
[330702808,1719715897014,-155.81707457,0.00016219,3]
[330702809,1719715897023,-524.70092943,0.00016219,3]
[330702810,1719715897033,-648.15267322,0.00016219,3]
[330702811,1719715897042,-665.8420637,0.00016219,3]
[330702812,1719715897052,-595.39813044,0.00016219,3]
[330702813,1719715897066,-498.11817167,0.00016219,3]
[330702814,1719715897076,-535.36079098,0.00016219,3]
[330702815,1719715897086,-1707.73949533,0.00016219,3]
[330702816,1719715897099,-1194.34133114,0.00016219,3]
[330702817,1719715897108,-862.61177685,0.00016219,3]
[330702818,1719715897118,-775.74625491,0.00016219,3]
[330702819,1719715897130,-2017.07599733,0.00016219,3]
[330702820,1719715897143,-1155.33077536,0.00016219,3]
[330702821,1719715897153,-3847.53228968,0.00016219,3]
[330702822,1719715897163,-501.09,0.00016219,3]
[330702823,1719715897173,-670.1911441,0.00016219,3]
[330702824,1719715897183,-1981.3114436,0.00016219,3]
[330702825,1719715897193,-1322.90573626,0.00016219,3]
[330702826,1719715897203,-561.43670119,0.00016219,3]
[330702827,1719715897212,-757.73778292,0.00016219,3]
[330702828,1719715897221,-580.15069988,0.00016219,3]
[330702829,1719715897231,-1006.24515095,0.00016219,3]
[330702830,1719715897240,-398.97017293,0.00016219,3]
[330702831,1719715897251,-1341.8,0.00016219,3]
[330702832,1719715897260,-633.98451446,0.00016219,3]
[330702833,1719715897271,-308.36308007,0.00016219,3]
[330702834,1719715897280,-1187.56166887,0.00016219,3]
[330702835,1719715897290,-579.89926245,0.00016219,3]
[330702836,1719715897299,-314.8922085,0.00016219,3]
[330702837,1719715897308,-604.04679816,0.00016219,3]
[330702838,1719715897317,-553.07868141,0.00016219,3]
[330702839,1719715897327,-965.90118325,0.00016219,3]
[330702840,1719715897336,-642.30361866,0.00016219,3]
[330702841,1719715897350,-698.56241893,0.00016219,3]
[330702842,1719715897359,-516.28254372,0.00016219,3]
[330702843,1719715897368,-676.07227385,0.00016219,3]
[330702844,1719715897377,-763.85569882,0.00016219,3]
[330702845,1719715897387,-713.83110442,0.00016219,3]
[330702846,1719715897396,-892.64812202,0.00016219,3]
[330702847,1719715897406,-708.248013,0.00016219,3]
[330702848,1719715897415,-523.77913984,0.00016219,3]
[330702849,1719715897424,-624.66980204,0.00016219,3]
[330702850,1719715897433,-3175.5950048,0.00016219,3]
[330702851,1719715897444,-987.08015334,0.00016219,3]
[330702852,1719715897453,-1369.15368424,0.00016219,3]
[330702853,1719715897463,-1311.61651464,0.00016219,3]
[330702854,1719715897472,-907.70809454,0.00016219,3]
[330702855,1719715897482,-507.14381895,0.00016219,3]
[330702856,1719715897491,-1080.68920197,0.00016219,3]
[330702857,1719715897501,-1471.1431269,0.00016219,3]
[330702858,1719715897511,-1162.16798017,0.00016219,3]
[330702859,1719715897520,-1968.92374767,0.00016219,3]
[330702860,1719715897529,-655.02189477,0.00016219,3]
[330702861,1719715897539,-1152.0,0.00016302,2]
[330702862,1719715897549,-664.54,0.00016327,3]
[330702863,1719715897558,-699.83,0.00016327,3]
[330702864,1719715897568,-1202.0,0.00016327,3]
[330702865,1719715897578,-522.36,0.00016327,3]
[330702866,1719715897587,-262.23982516,0.00016338,2]
[330702867,1719715897598,-203.51161647,0.00016338,2]
[330702868,1719715897610,-167.0,0.00016354,2]
[330702869,1719715897620,-664.70081488,0.00016437,3]
[330702870,1719715897630,-699.90337561,0.00016437,3]
[330702871,1719715897642,-1202.20475724,0.00016437,3]
[330702872,1719715897652,-522.44858624,0.00016437,3]
[330702873,1719715897661,-500.0,0.00016438,3]
[330702874,1719715897670,-500.0,0.00016438,3]
[330702875,1719715897679,-500.0,0.00016438,3]
[330702876,1719715897688,-500.0,0.00016438,3]
[330702877,1719715897698,-500.0,0.00016438,3]
[330702878,1719715897707,-500.0,0.00016438,3]
[330702879,1719715897716,-500.0,0.00016438,3]
[330702880,1719715897725,-500.0,0.00016438,3]
[330702881,1719715897735,-500.0,0.00016438,3]
[330702882,1719715897744,-500.0,0.00016438,3]
[330702883,1719715897756,-500.0,0.00016438,3]
[330702884,1719715897765,-500.0,0.00016438,3]
[330702885,1719715897775,-500.0,0.00016438,3]
[330702886,1719715897784,-500.0,0.00016438,3]
[330702887,1719715897793,-500.0,0.00016438,3]
[330702888,1719715897802,-500.0,0.00016438,3]
[330702889,1719715897811,-500.0,0.00016438,3]
[330702890,1719715897820,-500.0,0.00016438,3]
[330702891,1719715897829,-500.0,0.00016438,3]
[330702892,1719715897838,-500.0,0.00016438,3]
[330702893,1719715897850,-500.0,0.00016438,3]
[330702894,1719715897859,-369.29844315,0.00016438,3]
[330702895,1719715897868,-1661.54,0.00016438,2]
[330702896,1719715897878,-300.0,0.00016438,2]
[330702897,1719715897887,-5604.08620179,0.00016441,2]
[330702898,1719715897896,-25072.10870496,0.00016451,2]
[330702899,1719715897905,-166.88,0.00016484,2]
[330702900,1719715897915,-1763.49292284,0.00016566,2]
[330702901,1719715897924,-204.0,0.0001662,2]
[330702902,1719715897933,-327.0,0.0001662,2]
[330702903,1719715897943,-171.29495,0.0001669,2]
[330702904,1719715897952,-167.0,0.00016876,2]
[330702905,1719715897962,-172.72,0.0001692,2]
[330702906,1719715897971,-255.496,0.00016927,2]
[330702907,1719715897980,-842.74,0.00016927,2]
[330702908,1719715897990,-3006.259,0.00016927,2]
[330702909,1719715898000,-452.614,0.00016927,2]
[330702910,1719715898009,-2000.0,0.00016986,3]
[330702911,1719715898019,-204.0,0.0001706,2]
[330702912,1719715898028,-327.0,0.0001706,2]
[330702913,1719715898038,-13555.21091272,0.00017123,2]
[330702914,1719715898048,-452.16034576,0.00017126,2]
[330702915,1719715898062,-166.88,0.00017137,2]
[330702916,1719715898071,-5604.08620179,0.00017197,2]
[330702917,1719715898081,-1000.0,0.00017209,2]
[330702918,1719715898091,-520.8,0.00017209,2]
[330702919,1719715898102,-25072.10870496,0.00017256,2]
[330702920,1719715898111,-215.42,0.00017322,2]
[330702921,1719715898120,-167.0,0.00017399,2]
[330702922,1719715898130,-221.0,0.000175,2]
[330702923,1719715898141,-204.0,0.000175,2]
[330702924,1719715898151,-327.0,0.000175,2]
[330702925,1719715898160,-152.0,0.00017525,3]
[330702926,1719715898169,-314.86810004,0.00017534,2]
[330702927,1719715898179,-500.0,0.00017534,2]
[330702928,1719715898188,-925.33014357,0.00017544,2]
[330702929,1719715898198,-470.10704664,0.000177,2]
[330702930,1719715898208,-166.88,0.00017791,2]